Cogmind - Beta 14 @@@ ROGUE MODE // 2024.08.26 @ 18:53:25 Player: JohnnyDongs Result: Destroyed by 9Y-MAN(R) with Subdweller Beam Cannon Performance ------------- Evolutions (0) 0 Regions Visited (2) 400 Robots Destroyed (31) 155 Value Destroyed (516) 516 Prototype IDs (2) 40 Alien Tech Used (0) 0 Bonus (0) 0 TOTAL SCORE: 1111 Bonus ------- None Cogmind --------- Core Integrity 0/250 Matter 261/300 Energy 160/160 System Corruption 0% Temperature Warm (155) Movement Treading (480) Ox4 Location -10/Subcaves Parts ------- > --- POWER (1) -------- Light Nuclear Core > --- PROPULSION (2) --- Light Treads > --- UTILITY (2) ------ Huge Storage Unit Light Armor Plating > --- WEAPON (2) ------- Subdweller Machine Gun Heavy Battle Rifle > --- INVENTORY (25) --- Ion Engine Ion Engine Ion Engine Aluminum Leg High-capacity Battery (250) Signal Interpreter Improved Terrain Scanner Seismic Detector Light Armor Plating EM Pulse Gun Medium Laser Beam Cannon Beam Cannon Beam Cannon Beam Cannon Beam Cannon Beam Cannon Subdweller Beam Cannon Assault Rifle Grenade Launcher Mining Laser Peak State ------------ > --- POWER ------------ Light Nuclear Core > --- PROPULSION ------- Light Treads Wheel > --- UTILITY ---------- Huge Storage Unit Light Armor Plating > --- WEAPON ----------- Subdweller Beam Cannon Heavy Battle Rifle > --- INVENTORY -------- Ion Engine Ion Engine Ion Engine Aluminum Leg High-capacity Battery Signal Interpreter Improved Terrain Scanner Seismic Detector Light Armor Plating Light Armor Plating EM Pulse Gun Medium Laser Beam Cannon Beam Cannon Beam Cannon Beam Cannon Beam Cannon Beam Cannon Assault Rifle Grenade Launcher Mining Laser [Rating: 15] Favorites ----------- Power Light Nuclear Core Engine Ion Engine Power Core Light Nuclear Core Propulsion Light Treads Treads Light Treads Leg Aluminum Leg Wheel Wheel Utility Huge Storage Unit Device Seismic Detector Storage Huge Storage Unit Protection Light Armor Plating Weapon Beam Cannon Energy Gun EM Pulse Gun Energy Cannon Beam Cannon Ballistic Gun Assault Rifle Special Weapon Mining Laser Build | -11 -10 -10 ------- Run | Yrd Mat Sub Slots Evolved . | . . . Power . | . . . Propulsion . | . . . Utility . | . . . Weapon . | . . . Parts Attached 28 | 8 14 6 Power 2 | 1 1 . Engine 1 | 1 . . Core 1 | . 1 . Reactor . | . . . Propulsion 7 | 2 5 . Treads 5 | 2 3 . Leg 1 | . 1 . Wheel 1 | . 1 . Hover . | . . . Flight . | . . . Utility 6 | 3 2 1 Device 2 | 2 . . Storage 2 | 1 1 . Processor . | . . . Hackware . | . . . Protection 2 | . 1 1 Artifact . | . . . Weapon 13 | 2 6 5 Energy Gun 1 | 1 . . Energy Cannon 5 | . 3 2 Ballistic Gun 5 | 1 1 3 Ballistic Cannon . | . . . Launcher . | . . . Special Weapon 2 | . 2 . Impact Weapon . | . . . Slashing Weapon . | . . . Piercing Weapon . | . . . Special Melee Weapon . | . . . Unidentified Prototypes . | . . . Parts Lost 4 | . 2 2 Power . | . . . Propulsion 3 | . 2 1 Utility 1 | . . 1 Weapon . | . . . Highest Loss Streak 2 | . 1 2 To Critical Strikes . | . . . Average Slot Usage (%) 98 | . 98 99 Engine 2 | . 2 . Core 11 | . 11 14 Treads 17 | . 18 14 Leg 2 | . 3 . Wheel 6 | . 4 13 Device 6 | . 8 . Storage 14 | . 14 14 Protection 7 | . 5 13 Energy Cannon 13 | . 12 15 Ballistic Gun 9 | . 9 10 Special Weapon 4 | . 5 1 Peak Build Rating 15 | 9 11 15 Average Rating 10 | 5 9 13 On Entrance 6 | . 7 11 Naked Turns . | . . . Heaviest Build 100 | 15 93 100 Greatest Support 40 | 40 40 10 Greatest Overweight (x) 30 | 1 30 9 Average Overweight (x) 4 | . 2 9 Largest Inventory Capacity 25 | 8 25 25 Average Capacity 20 | 7 20 25 Most Carried 22 | 3 20 22 Average Carried 12 | . 10 20 Final Capacity 25 | 8 25 25 Final Carried 21 | 2 20 21 Class Distribution -------------------- 100% | Mutant Dominant Class ---------------- Mutant | -10/Materials Mutant | -10/Subcaves Resources | -11 -10 -10 ----------- Run | Yrd Mat Sub Matter Collected 572 | 289 243 40 Remotely . | . . . Salvage Created 747 | 118 525 104 Parts 58 | 8 41 9 Haulers Intercepted 2 | . 2 . Recyclers Shooed 1 | . 1 . Parts Field Recycled . | . . . Retrieved Matter . | . . . Parts Self-Destructed 5 | . . 5 Prevented . | . . . Kills | -11 -10 -10 ------- Run | Yrd Mat Sub Combat Hostiles Destroyed 17 | . 13 4 Guns 4 | . 4 . Cannons 13 | . 9 4 Classes Destroyed 11 | 3 7 1 Worker 2 | 1 1 . Builder 1 | . 1 . Tunneler 3 | 3 . . Hauler 2 | . 2 . Recycler 1 | 1 . . Mechanic 1 | . 1 . Operator 1 | . 1 . Watcher 3 | . 3 . Swarmer 9 | . 6 3 Grunt 7 | . 7 . Subdweller 1 | . . 1 Best Kill Streak 5 | 4 5 2 Combat Bots Only 4 | . 4 2 Max Kills in Single Turn 2 | 2 2 1 Gunslinging . | . . . Exploded . | . . . Melee . | . . . Uniques/NPCs Destroyed . | . . . Combat | -11 -10 -10 -------- Run | Yrd Mat Sub Hostile Shots Fired 113 | . 85 28 Missed 24 | . 20 4 Damage Taken 1029 | . 710 319 Core 276 | . 172 104 Absorbed by Shields . | . . . Regen/Repaired (Parts) 94 | . 94 . Core Remaining (%) 100 | 100 . . Volleys Fired 66 | 3 49 14 Largest 2 | 2 2 2 Hottest 160 | 60 100 160 Shots Fired 118 | 4 90 24 Gun 53 | 4 41 8 Cannon 55 | . 41 14 Launcher . | . . . Special 10 | . 8 2 Kinetic 52 | 3 41 8 Thermal 65 | . 49 16 Explosive . | . . . Electromagnetic 1 | 1 . . Robot Hit Streak 7 | 4 7 5 Robot Miss Streak 3 | . 3 2 Penetration Max . | . . . Secondary Targets . | . . . Shots Hit Robots 59 | 4 43 12 Core Hits 35 | 5 26 4 Critical Kills . | . . . Critical Parts Destroyed . | . . . Critical Strikes . | . . . Melee Attacks . | . . . Impact . | . . . Slashing . | . . . Piercing . | . . . Sneak Attacks . | . . . Combat Hostiles . | . . . Follow-up Attacks . | . . . Damage Inflicted 1233 | 120 875 238 Guns 394 | 47 267 80 Cannons 579 | . 421 158 Explosions 229 | 67 162 . Melee . | . . . Ramming 31 | 6 25 . Kinetic 382 | 35 267 80 Thermal 808 | 67 583 158 Explosive . | . . . Electromagnetic 12 | 12 . . Impact . | . . . Slashing . | . . . Piercing . | . . . Highest Corruption . | . . . Average Corruption . | . . . Corruption Purged . | . . . Corruption Blocked . | . . . Overload Shots . | . . . Overflow Damage 52 | . 52 . Projectiles . | . . . Explosions 52 | . 52 . Melee . | . . . Knockbacks . | . . . Impact . | . . . Kinetic . | . . . Secondary . | . . . Self-Inflicted Damage . | . . . Shots . | . . . Rammed 2 | . 2 . Targets Rammed 5 | 1 4 . Kicked . | . . . Crushed 3 | 1 2 . Highest Temperature 369 | . 369 309 Average Temperature 96 | . 94 110 Received Heat Transfer 581 | . 255 326 Effects 4 | . 3 1 Energy Bleed 1 | . 1 . Interference 2 | . 2 . Damage (minor) 1 | . . 1 Siege Activations . | . . . Robots Corrupted . | . . . Combat Hostiles . | . . . Parts Fried . | . . . Impact Corruptions . | . . . Robots Melted . | . . . Combat Hostiles . | . . . Parts Melted 1 | . . 1 Heat Transferred 1334 | 50 988 296 Parts Sabotaged . | . . . Parts Stolen . | . . . Parts Stripped . | . . . Power Chain Reactions 1 | 1 . . Alert | -11 -10 -10 ------- Run | Yrd Mat Sub Peak Influence 240 | 20 240 . Initial 16 | . 16 . Average 89 | 9 93 . Maximum Alert Level 1 | . 1 . Low Security (%) 98 | 100 98 . Level 1 1 | . 1 . Level 2 . | . . . Level 3 . | . . . Level 4 . | . . . Level 5 . | . . . High Security . | . . . Max Security . | . . . Squads Dispatched 4 | . 4 . Investigation 3 | . 3 . Extermination . | . . . Reinforcement 1 | . 1 . Assault . | . . . Garrison . | . . . Intercept . | . . . Searches Triggered . | . . . Construction Impeded . | . . . Haulers Reinforced . | . . . Active Scanning Responses . | . . . Cargo Convoy Interrupts . | . . . Stealth | -11 -10 -10 --------- Run | Yrd Mat Sub Distress Signals 1 | . 1 . Communications Jammed . | . . . Distress Signals . | . . . Times Spotted 28 | . 22 6 Peak Tracking Total 6 | . 6 3 Tactical Retreats 1 | . . 1 Traps | -11 -10 -10 ------- Run | Yrd Mat Sub Traps Triggered 4 | . 4 . Indirectly . | . . . Trap Hack Attempts . | . . . Triggered . | . . . Disarmed . | . . . Reprogrammed . | . . . Reused . | . . . Traps Extracted . | . . . Installed . | . . . Triggered . | . . . Machines | -11 -10 -10 ---------- Run | Yrd Mat Sub Machines Disabled 3 | . 3 . Max in Single Turn 2 | . 2 . Machines Repaired . | . . . Machines Dismantled . | . . . Machines Sabotaged . | . . . Overloaded Fab Kills . | . . . Hacking | -11 -10 -10 --------- Run | Yrd Mat Sub Machines Accessed 10 | . 10 . Terminals 7 | . 7 . Fabricators . | . . . Repair Stations 1 | . 1 . Recycling Units 2 | . 2 . Scanalyzers . | . . . Garrison Access . | . . . Total Hacks 32 | . 32 . Successful 19 | . 19 . Failed 13 | . 13 . Catastrophic 1 | . 1 . Database Lockouts . | . . . Manual 25 | . 25 . Terminals 23 | . 23 . Fabricators . | . . . Repair Stations 3 | . 3 . Recycling Units 6 | . 6 . Scanalyzers . | . . . Garrison Access . | . . . Terminal Hacks 1 | . 1 . Prototype ID Bank 1 | . 1 . Fabricator Hacks . | . . . Repair Station Hacks 2 | . 2 . Scan Component 1 | . 1 . Repair 1 | . 1 . Recycling Unit Hacks 2 | . 2 . Report Inventory 2 | . 2 . Scanalyzer . | . . . Garrison Access Hacks . | . . . Unauthorized Hacks 14 | . 14 . Terminals 11 | . 11 . Botnet 5 | . 5 . Skim 6 | . 6 . Fabricators . | . . . Repair Stations . | . . . Recycling Units 3 | . 3 . Monitor 1 | . 1 . Tunnel 2 | . 2 . Scanalyzers . | . . . Garrison Access . | . . . Data Cores Recovered . | . . . Used . | . . . Hacking Detections 8 | . 8 . Full Trace Events 2 | . 2 . Feedback Events . | . . . Feedback Blocked . | . . . Robot Schematics Acquired . | . . . Robots Built . | . . . Authchips . | . . . Time . | . . . Total Robot Build Rating . | . . . Part Schematics Acquired . | . . . Parts Built . | . . . Authchips . | . . . Time . | . . . Total Part Build Rating . | . . . Parts Repaired 1 | . 1 . Time 26 | . 26 . Parts Recycled . | . . . Recycled Matter . | . . . Retrieved Matter . | . . . Retrieved Components . | . . . Parts Scanalyzed . | . . . Part Schematics Acquired . | . . . Parts Damaged . | . . . Bothacking | -11 -10 -10 ------------ Run | Yrd Mat Sub Used RIF Installer . | . . . Robots Hacked . | . . . Non-combat . | . . . Combat . | . . . Robot Hacks Applied . | . . . Relay Couplers Released . | . . . Fabnet Peak Effective % . | . . . Robots Rewired . | . . . Allies Hacked . | . . . Hacks Repelled . | . . . Allies | -11 -10 -10 -------- Run | Yrd Mat Sub Total Allies . | . . . Largest Group . | . . . Highest-Rated Group . | . . . Highest-Rated Ally . | . . . Total Orders . | . . . Ally Attacks . | . . . Total Damage . | . . . Kills . | . . . Allies Corrupted . | . . . Allies Melted . | . . . Intel | -11 -10 -10 ------- Run | Yrd Mat Sub Robot Analysis Total . | . . . Derelict Logs Recovered . | . . . Drone Launches . | . . . Drone Recoveries . | . . . Exploration | -11 -10 -10 ------------- Run | Yrd Mat Sub Turns Passed 3160 | 109 2310 741 Spaces Moved 1116 | 57 738 321 Core 9 | 5 4 . Treads 624 | 52 572 . Legs . | . . . Wheels 483 | . 162 321 Hover . | . . . Flight . | . . . Fastest Speed 50 | 50 160 215 Average Speed 224 | 152 234 215 Slowest Speed 1550 | 160 1550 215 Overloaded Moves . | . . . Propulsion Burnouts . | . . . Robots Hopped . | . . . Cave-ins Triggered . | . . . Exploration Rate (%) 41 | 4 97 24 Regions Visited 2 Branch Regions 1 Pre-discovered Areas 3 | . 3 . Known Exits Taken . | . . . Unknown Exits Taken 2 | 1 1 . Scrap Searched . | . . . Spaces Dug 5 | . 5 . Terrain Destroyed 26 | . 26 . Melee . | . . . Projectile 5 | . 5 . AOE 21 | . 21 . Terrain Rammed . | . . . Walls Destroyed . | . . . Machines Disabled . | . . . Actions | -11 -10 -10 --------- Run | Yrd Mat Sub Total 1611 | 72 1195 344 Wait 370 | . 370 . Move 1115 | 57 737 321 Hop . | . . . Pick Up 22 | 3 18 1 Fast Attach 17 | 7 8 2 Attach 2 | 1 . 1 Detach 2 | . 1 1 Swap 9 | . 6 3 Drop 4 | 1 2 1 Fire 66 | 3 49 14 Melee . | . . . Ram . | . . . Kick . | . . . Crush 4 | . 4 . Escape Stasis . | . . . Rewire . | . . . Trap . | . . . Miscellaneous . | . . . Route ------- -11/Scrapyard -10/Materials (discovered 6 exits: [*Mat x3] / [*Min x2] / [*Sub]) -10/Subcaves (discovered 2 exits: Mat x2) History --------- Turn | Location | Event 8 | -11/Scrapyard | Discovered new exit (range 15) 110 | -11/Scrapyard | Entered Materials 302 | -10/Materials | Build established: Mutant 442 | -10/Materials | Discovered new exit (range 15) 477 | -10/Materials | Discovered new exit (range 3) 557 | -10/Materials | Core integrity fell below 50% 658 | -10/Materials | Discovered new exit (range 16) 990 | -10/Materials | Discovered new exit (range 15) 1479 | -10/Materials | Discovered new exit (range 5) 1646 | -10/Materials | Discovered new exit (range 5) 1905 | -10/Materials | Repaired Assault Rifle 2112 | -10/Materials | Loaded intel: 16 trap records 2202 | -10/Materials | Learned location of Mines (-9) 2232 | -10/Materials | Learned 2 Mines zone layouts 2263 | -10/Materials | Learned Storage trap positions 2420 | -10/Materials | Entered Subcaves 2421 | -10/Subcaves | Identified exit to Materials 2517 | -10/Subcaves | Shifting Twisted Machinery released Hvy. Battle Rifle 2551 | -10/Subcaves | Shifting Twisted Machinery released Sub. Beam Cannon 3157 | -10/Subcaves | Core integrity fell below 20% 3161 | -10/Subcaves | Destroyed by 9Y-MAN(R) with Subdweller Beam Cannon Last Messages --------------- 02529_ Flight Unit fries itself beyond repair. Sub. Beam Cannon falls loose from the Twisted Machinery. 02563_ Dropped Beam Cannon. 02566_ Acquired Sub. Beam Cannon. 02570_ Subatomizers dissect the Beam Cannon. 02604_ Acquired Hvy. Battle Rifle. 02632_ Acquired 5 matter. 02727_ Acquired 15 matter. 03067_ Acquired Sub. Machine Gun. 2A-P38(R) emerges from concealment. 03147_ Wheel destroyed. 03149_ Disposable Heat Sink melted. 03149_ EA-XS8(R) destroyed. 03149_ Lgt. Armor Plating destroyed. 03149_ Critical hit (Meltdown: +290). 03150_ Overheating: Lgt. Treads damaged (-45). 03155_ Subatomizers dissect the Sub. Beam Cannon. Map ----- +----------------------------------------------------+ | ?????????????????????????????????????### #### | | ?????????????????????????????????????# | | ????????????????????????????###?###### | | ????????????????????????????#""## | | ??????????????????????????????# " ##### | | ??????????????????????????????# " #??## | | ??????????????????????????????# ""## ##### | | ??????????????????????????????## ##""#### ##?# | | ???????????????????????????????#####"#??###??## | | ???????????????????????????? ??????###????????#### | | ?????????????????????????#" "#???????????????????? | | ?????????????????????? """"#???????????????????? | | ??????????????????????"%"""""###?????????????????? | | ??????????????????????#""""" ##????????????????? | | ???????????????????????#"""""" ??????????????###? | | ??????????????????###?## "" """??????????###?## ## | | ???????????????????""## #?########### ### # | | ???????????##???##?"""" # ### ""## ## ## # | | ???????????# ## ##"" # "% | | ???????????? ## " | | ???????????????? ### % ## | | ???????????????????# #???## ## #### #### ## | | ???????????????????# ##???## ######??####??##### | | ???????????????????# #?### #???????????????# | | ??????????????????## #### #???????????????? | | ????????????????# # &%]@ ##???????????????? | | ?????????# R &&* ###????????????????# | | ?????????# R ### ##??????????????????? | | ?????????## # ## #?## #???????????????????? | | ??????????##??#??## #??# #####???????????????? | | ??????????????????# ??# #???????????????? | | ??????????????????# #??## ##???????????????# | | ??????????????????## #???#######????????????????# | | ???????????????????## ??????????????????????????## | | ????????????????????? ?????????????????????????## | | ????????????????????? ?????????????????????????# | | ????????????????????? ??????????????????????????# | | ????????????????????? ??????????????????????????## | | ????????????????????? ???????????????????????????? | | ????????????????????? ???????????????????????????# | | ?????????????????????????????????????????????????# | | ?????????????????????????????????????????????????# | | ?????????????????????????????????????????????????? | | ????????????????????????????????????????????????## | | ???????????????????????????????????????????????## | | ???????????????????????????????????????????????# | | ???????????????????????????????????????????????# | | ???????????????????????????????????????????????# | | ???????????????????????????????????????????????### | | ?????????????????????????????????????????????????? | +----------------------------------------------------+ Best States ------------- Heat Dissipation 25 Energy Generation 14 Energy Capacity 250 Matter Stores 300 Matter Capacity 300 Sight Range 16 Terrain Scan Range 16 Terrain Scan Density 10 Armor Coverage 150 Evasion (%) 40 Recoil Reduction 2 Item Schematics ----------------- None Robot Schematics ------------------ None Fabricated ------------ Nothing Alien Tech Used ----------------- None Achievements -------------- None Challenges ------------ None Game ------ Seed BarragePlatingTriangulator Manual? 0 Play Time 00:27:30 Cumulative 37.6 hours Start 2024.08.26 @ 18:25:07 End 2024.08.26 @ 18:53:25 Sessions 1 Manual Loads 0 Difficulty Rogue Special Mode None Game No. 26 Rogue 26 Adventurer 0 Explorer 0 Win Type - Total 0 Types 0/0/0/0/0/0/0/0/0 Lore% 15 Gallery% 31 Achievement% 32 Wizard Run 0 Options --------- Layout 1 ASCII 0 Keyboard 0 Movement Numpad Keybinds 0 Fullscreen 1 Font 24/Smallcaps Map View 50x35 Zoom Use 0% Tactical HUD 1 Map Filters NONE Filters NONE Steam 1 RUN: 46ed2fe4-5842-4aa3-9744-576e65d3203b